[Event "2026 Biel Blitz Open"]
[Site "Biel, CH"]
[Date "2026.07.19"]
[Round "4"]
[White "Hirt, Markus"]
[Black "Amsellem, Daniel"]
[Result "1-0"]
[Board "51"]
[TimeControl "180+2"]
[WhiteFideId "1302582"]
[BlackFideId "1363522"]
[WhiteElo "1880"]
[BlackElo "1723"]
[WhiteClock "0:01:18"]
[BlackClock "0:00:52"]
[Variant "Standard"]
[EndDate "2026.07.19"]
[EndTime "12:55:33"]

1. e4 {[%clk 0:03:03]}  e5 {[%clk 0:03:03]} 2. Bc4 {[%clk 0:03:04]}  Nf6 {[%clk 0:03:01]} 3. d3 {[%clk 0:03:05]}  c6 {[%clk 0:03:02]}
4. Nf3 {[%clk 0:03:05]}  Qc7 {[%clk 0:02:59]} 5. O-O {[%clk 0:03:03]}  Be7 {[%clk 0:02:59]} 6. Re1 {[%clk 0:02:58]}  O-O {[%clk 0:02:57]}
7. d4 {[%clk 0:02:51]}  d5 {[%clk 0:02:50]} 8. exd5 {[%clk 0:02:47]}  cxd5 {[%clk 0:02:50]} 9. dxe5 {[%clk 0:02:26]}  dxc4 {[%clk 0:02:35]}
10. exf6 {[%clk 0:02:27]}  Bxf6 {[%clk 0:02:35]} 11. Nc3 {[%clk 0:02:18]}  Bg4 {[%clk 0:02:34]} 12. h3 {[%clk 0:02:04]}  Bh5 {[%clk 0:02:35]}
13. Nd5 {[%clk 0:01:53]}  Qc6 {[%clk 0:02:25]} 14. Nxf6+ {[%clk 0:01:46]}  Qxf6 {[%clk 0:02:25]} 15. g4 {[%clk 0:01:45]}  Bg6 {[%clk 0:02:23]}
16. Ne5 {[%clk 0:01:26]}  Nc6 {[%clk 0:02:14]} 17. Nd7 {[%clk 0:01:25]}  Qh4 {[%clk 0:02:11]} 18. Nxf8 {[%clk 0:01:24]}  Rxf8 {[%clk 0:01:55]}
19. Qf3 {[%clk 0:01:25]}  Nd4 {[%clk 0:01:52]} 20. Qg3 {[%clk 0:01:19]}  Qxg3+ {[%clk 0:01:48]} 21. fxg3 {[%clk 0:01:21]}  Nxc2 {[%clk 0:01:45]}
22. Be3 {[%clk 0:01:13]}  Nxa1 {[%clk 0:01:45]} 23. Rxa1 {[%clk 0:01:14]}  b5 {[%clk 0:01:43]} 24. Bxa7 {[%clk 0:01:12]}  Bd3 {[%clk 0:01:43]}
25. Bc5 {[%clk 0:01:06]}  Ra8 {[%clk 0:01:40]} 26. a3 {[%clk 0:01:06]}  f6 {[%clk 0:01:37]} 27. Re1 {[%clk 0:01:05]}  Kf7 {[%clk 0:01:34]}
28. Re7+ {[%clk 0:01:06]}  Kg6 {[%clk 0:01:35]} 29. Rb7 {[%clk 0:01:05]}  Re8 {[%clk 0:01:29]} 30. h4 {[%clk 0:00:51]}  Re1+ {[%clk 0:01:22]}
31. Kf2 {[%clk 0:00:52]}  Re2+ {[%clk 0:01:22]} 32. Kf3 {[%clk 0:00:50]}  Kh6 {[%clk 0:01:05]} 33. Be3+ {[%clk 0:00:45]}  g5 {[%clk 0:01:03]}
34. Rb6 {[%clk 0:00:36]}  Rxb2 {[%clk 0:00:52]} 35. Rxf6+ {[%clk 0:01:31]}  Kg7 {[%clk 0:00:50]} 36. Bxg5 {[%clk 0:01:27]}  c3 {[%clk 0:00:50]}
37. Rc6 {[%clk 0:01:23]}  c2 {[%clk 0:00:51]} 38. Bf6+ {[%clk 0:01:24]}  Kf7 {[%clk 0:00:52]} 39. Bxb2 {[%clk 0:01:18]} 1-0

[Event "2026 Biel Blitz Open"]
[Site "Biel, CH"]
[Date "2026.07.19"]
[Round "4"]
[White "Valsecchi, Luca"]
[Black "Mousseau, Leo"]
[Result "1-0"]
[Board "53"]
[TimeControl "180+2"]
[WhiteFideId "1368524"]
[BlackFideId "34666931"]
[WhiteElo "1869"]
[BlackElo "1714"]
[WhiteClock "0:00:18"]
[BlackClock "0:00:09"]
[Variant "Standard"]
[EndDate "2026.07.19"]
[EndTime "12:53:06"]

1. d4 {[%clk 0:03:03]}  Nf6 {[%clk 0:03:03]} 2. Nf3 {[%clk 0:03:04]}  g6 {[%clk 0:03:04]} 3. Bf4 {[%clk 0:03:03]}  Bg7 {[%clk 0:03:05]}
4. e3 {[%clk 0:03:04]}  O-O {[%clk 0:03:06]} 5. Be2 {[%clk 0:03:05]}  d6 {[%clk 0:03:07]} 6. O-O {[%clk 0:03:05]}  Re8 {[%clk 0:03:07]}
7. h3 {[%clk 0:03:06]}  Nbd7 {[%clk 0:02:59]} 8. c3 {[%clk 0:03:06]}  c6 {[%clk 0:02:57]} 9. Nbd2 {[%clk 0:03:07]}  Qb6 {[%clk 0:02:53]}
10. Nc4 {[%clk 0:03:07]}  Qc7 {[%clk 0:02:45]} 11. a4 {[%clk 0:03:08]}  Nd5 {[%clk 0:02:28]} 12. Bh2 {[%clk 0:03:08]}  e5 {[%clk 0:02:15]}
13. dxe5 {[%clk 0:02:30]}  Nxe5 {[%clk 0:02:11]} 14. Nfxe5 {[%clk 0:02:18]}  dxe5 {[%clk 0:01:57]} 15. Qc2 {[%clk 0:01:45]}  Qe7 {[%clk 0:01:46]}
16. a5 {[%clk 0:01:37]}  Bf5 {[%clk 0:01:42]} 17. e4 {[%clk 0:01:31]}  Bxh3 {[%clk 0:01:34]} 18. gxh3 {[%clk 0:01:22]}  Nf4 {[%clk 0:01:33]}
19. Bxf4 {[%clk 0:01:12]}  exf4 {[%clk 0:01:33]} 20. Qd3 {[%clk 0:00:39]}  Rad8 {[%clk 0:01:03]} 21. Qf3 {[%clk 0:00:37]}  b5 {[%clk 0:00:36]}
22. axb6 {[%clk 0:00:36]}  axb6 {[%clk 0:00:37]} 23. Nxb6 {[%clk 0:00:28]}  Rd2 {[%clk 0:00:24]} 24. Nc4 {[%clk 0:00:27]}  Rdd8 {[%clk 0:00:19]}
25. Rfd1 {[%clk 0:00:27]}  Qg5+ {[%clk 0:00:13]} 26. Qg4 {[%clk 0:00:25]}  Qc5 {[%clk 0:00:09]} 27. Qxf4 {[%clk 0:00:19]}  Rxd1+ {[%clk 0:00:09]}
28. Rxd1 {[%clk 0:00:18]} 1-0

[Event "2026 Biel Blitz Open"]
[Site "Biel, CH"]
[Date "2026.07.19"]
[Round "4"]
[White "Tahari, Youcef Nazim"]
[Black "Draude, Theo"]
[Result "0-1"]
[Board "54"]
[TimeControl "180+2"]
[WhiteFideId "282537"]
[BlackFideId "34623809"]
[WhiteElo "1691"]
[BlackElo "1861"]
[WhiteClock "0:00:04"]
[BlackClock "0:00:17"]
[Variant "Standard"]
[EndDate "2026.07.19"]
[EndTime "12:53:11"]

1. e4 {[%clk 0:03:03]}  a6 {[%clk 0:03:04]} 2. d4 {[%clk 0:03:03]}  e6 {[%clk 0:03:05]} 3. Nf3 {[%clk 0:03:02]}  d5 {[%clk 0:03:06]}
4. Bd3 {[%clk 0:02:59]}  c5 {[%clk 0:03:04]} 5. exd5 {[%clk 0:02:53]}  exd5 {[%clk 0:03:00]} 6. Qe2+ {[%clk 0:02:40]}  Qe7 {[%clk 0:02:45]}
7. dxc5 {[%clk 0:02:16]}  Qxe2+ {[%clk 0:02:45]} 8. Bxe2 {[%clk 0:02:17]}  Bxc5 {[%clk 0:02:45]} 9. O-O {[%clk 0:02:18]}  Nf6 {[%clk 0:02:46]}
10. Bg5 {[%clk 0:02:09]}  Ne4 {[%clk 0:02:45]} 11. Bf4 {[%clk 0:02:04]}  O-O {[%clk 0:02:41]} 12. Bd3 {[%clk 0:01:57]}  Nc6 {[%clk 0:02:38]}
13. Nbd2 {[%clk 0:01:35]}  f5 {[%clk 0:02:35]} 14. c4 {[%clk 0:01:30]}  Nb4 {[%clk 0:02:30]} 15. Bb1 {[%clk 0:01:26]}  Be6 {[%clk 0:01:48]}
16. a3 {[%clk 0:01:14]}  Nc6 {[%clk 0:01:50]} 17. b4 {[%clk 0:01:04]}  Ba7 {[%clk 0:01:29]} 18. Bg3 {[%clk 0:00:51]}  Nxd2 {[%clk 0:01:23]}
19. Nxd2 {[%clk 0:00:50]}  dxc4 {[%clk 0:01:24]} 20. Re1 {[%clk 0:00:46]}  Rfe8 {[%clk 0:01:13]} 21. Ba2 {[%clk 0:00:29]}  b5 {[%clk 0:01:12]}
22. a4 {[%clk 0:00:29]}  Rad8 {[%clk 0:01:08]} 23. Rad1 {[%clk 0:00:29]}  Bf7 {[%clk 0:00:56]} 24. Nf3 {[%clk 0:00:29]}  Nxb4 {[%clk 0:00:49]}
25. Bb1 {[%clk 0:00:28]}  Rxe1+ {[%clk 0:00:40]} 26. Rxe1 {[%clk 0:00:29]}  Nd3 {[%clk 0:00:36]} 27. Re7 {[%clk 0:00:19]}  Bc5 {[%clk 0:00:28]}
28. Rc7 {[%clk 0:00:19]}  Bf8 {[%clk 0:00:18]} 29. axb5 {[%clk 0:00:20]}  axb5 {[%clk 0:00:19]} 30. h3 {[%clk 0:00:21]}  b4 {[%clk 0:00:19]}
31. Ng5 {[%clk 0:00:19]}  Bd5 {[%clk 0:00:18]} 32. Ra7 {[%clk 0:00:06]}  b3 {[%clk 0:00:17]} 33. Bxd3 {[%clk 0:00:04]} 0-1

[Event "2026 Biel Blitz Open"]
[Site "Biel, CH"]
[Date "2026.07.19"]
[Round "5"]
[White "Bu, Xiangzhi"]
[Black "Elmi, Saad Abobaker"]
[Result "1-0"]
[Board "1"]
[TimeControl "180+2"]
[WhiteFideId "8601445"]
[BlackFideId "1553259"]
[WhiteElo "2719"]
[BlackElo "2409"]
[WhiteTitle "GM"]
[BlackTitle "IM"]
[WhiteClock "0:00:30"]
[BlackClock "0:00:03"]
[Variant "Standard"]
[EndDate "2026.07.19"]
[EndTime "13:12:14"]

1. Nf3 {[%clk 0:03:03]}  Nf6 {[%clk 0:03:03]} 2. c4 {[%clk 0:03:05]}  e6 {[%clk 0:03:04]} 3. g3 {[%clk 0:03:06]}  d5 {[%clk 0:03:05]}
4. Bg2 {[%clk 0:03:07]}  d4 {[%clk 0:03:06]} 5. d3 {[%clk 0:03:08]}  c5 {[%clk 0:03:08]} 6. e4 {[%clk 0:03:09]}  Nc6 {[%clk 0:03:02]}
7. e5 {[%clk 0:03:11]}  Nd7 {[%clk 0:03:04]} 8. Qe2 {[%clk 0:03:11]}  b6 {[%clk 0:02:59]} 9. O-O {[%clk 0:03:11]}  Bb7 {[%clk 0:03:00]}
10. h4 {[%clk 0:03:11]}  h6 {[%clk 0:02:58]} 11. Re1 {[%clk 0:03:11]}  Be7 {[%clk 0:02:52]} 12. h5 {[%clk 0:03:09]}  Qc7 {[%clk 0:02:50]}
13. a3 {[%clk 0:03:07]}  a6 {[%clk 0:02:34]} 14. Bf4 {[%clk 0:03:02]}  g5 {[%clk 0:02:31]} 15. hxg6 {[%clk 0:03:01]}  fxg6 {[%clk 0:02:30]}
16. g4 {[%clk 0:03:01]}  g5 {[%clk 0:02:13]} 17. Bg3 {[%clk 0:03:01]}  h5 {[%clk 0:02:13]} 18. gxh5 {[%clk 0:02:52]}  O-O-O {[%clk 0:02:05]}
19. Nh2 {[%clk 0:02:48]}  Rdf8 {[%clk 0:02:00]} 20. Nd2 {[%clk 0:02:31]}  Rf4 {[%clk 0:02:01]} 21. b4 {[%clk 0:01:51]}  cxb4 {[%clk 0:01:51]}
22. axb4 {[%clk 0:01:51]}  Bxb4 {[%clk 0:01:52]} 23. Reb1 {[%clk 0:01:43]}  Bxd2 {[%clk 0:01:43]} 24. Qxd2 {[%clk 0:01:44]}  Ncxe5 {[%clk 0:01:44]}
25. Bxb7+ {[%clk 0:01:20]}  Qxb7 {[%clk 0:01:44]} 26. Bxf4 {[%clk 0:01:04]}  gxf4 {[%clk 0:01:43]} 27. Qxf4 {[%clk 0:01:04]}  Rg8+ {[%clk 0:00:47]}
28. Kf1 {[%clk 0:01:05]}  Nxd3 {[%clk 0:00:36]} 29. Qf3 {[%clk 0:01:05]}  N3e5 {[%clk 0:00:36]} 30. Qxb7+ {[%clk 0:01:05]}  Kxb7 {[%clk 0:00:34]}
31. Rd1 {[%clk 0:01:00]}  d3 {[%clk 0:00:31]} 32. Re1 {[%clk 0:00:48]}  Rf8 {[%clk 0:00:25]} 33. Rad1 {[%clk 0:00:47]}  a5 {[%clk 0:00:16]}
34. Re4 {[%clk 0:00:46]}  Kc7 {[%clk 0:00:12]} 35. f4 {[%clk 0:00:44]}  Nc6 {[%clk 0:00:13]} 36. Rxe6 {[%clk 0:00:33]}  Rxf4+ {[%clk 0:00:12]}
37. Kg2 {[%clk 0:00:35]}  Rxc4 {[%clk 0:00:08]} 38. h6 {[%clk 0:00:36]}  Rh4 {[%clk 0:00:08]} 39. Nf3 {[%clk 0:00:38]}  Rg4+ {[%clk 0:00:06]}
40. Kf2 {[%clk 0:00:37]}  Rg8 {[%clk 0:00:04]} 41. h7 {[%clk 0:00:30]}  Rh8 {[%clk 0:00:05]} 42. Rh6 {[%clk 0:00:32]}  Nce5 {[%clk 0:00:05]}
43. Nxe5 {[%clk 0:00:30]}  Nxe5 {[%clk 0:00:06]} 44. Rg1 {[%clk 0:00:29]}  Nf7 {[%clk 0:00:03]} 45. Rg7 {[%clk 0:00:30]} 1-0

[Event "2026 Biel Blitz Open"]
[Site "Biel, CH"]
[Date "2026.07.19"]
[Round "5"]
[White "Arjun Kalyan"]
[Black "Kozak, Adam"]
[Result "1-0"]
[Board "2"]
[TimeControl "180+2"]
[WhiteFideId "35018701"]
[BlackFideId "753246"]
[WhiteElo "2451"]
[BlackElo "2537"]
[WhiteTitle "GM"]
[BlackTitle "GM"]
[WhiteClock "0:00:15"]
[BlackClock "0:00:03"]
[Variant "Standard"]
[EndDate "2026.07.19"]
[EndTime "13:11:04"]

1. e4 {[%clk 0:03:03]}  e5 {[%clk 0:03:03]} 2. Nf3 {[%clk 0:03:04]}  Nc6 {[%clk 0:03:04]} 3. Bb5 {[%clk 0:03:05]}  Nf6 {[%clk 0:03:05]}
4. O-O {[%clk 0:03:04]}  Nxe4 {[%clk 0:03:05]} 5. Re1 {[%clk 0:03:03]}  Nd6 {[%clk 0:03:06]} 6. Bf1 {[%clk 0:02:56]}  Be7 {[%clk 0:03:00]}
7. Nc3 {[%clk 0:02:55]}  O-O {[%clk 0:02:55]} 8. d4 {[%clk 0:02:56]}  e4 {[%clk 0:02:51]} 9. Nxe4 {[%clk 0:02:56]}  Nxe4 {[%clk 0:02:51]}
10. Rxe4 {[%clk 0:02:56]}  d5 {[%clk 0:02:49]} 11. Re3 {[%clk 0:02:55]}  Bf6 {[%clk 0:02:39]} 12. c3 {[%clk 0:02:47]}  Ne7 {[%clk 0:02:30]}
13. a4 {[%clk 0:02:43]}  a5 {[%clk 0:02:26]} 14. Ne5 {[%clk 0:02:35]}  Ng6 {[%clk 0:02:24]} 15. g3 {[%clk 0:02:23]}  Nxe5 {[%clk 0:02:14]}
16. dxe5 {[%clk 0:02:24]}  Be7 {[%clk 0:02:15]} 17. Re1 {[%clk 0:02:00]}  c6 {[%clk 0:02:12]} 18. h4 {[%clk 0:01:56]}  Bf5 {[%clk 0:02:07]}
19. Bf4 {[%clk 0:01:40]}  Bc5 {[%clk 0:01:51]} 20. Be3 {[%clk 0:01:38]}  Bxe3 {[%clk 0:01:47]} 21. Rxe3 {[%clk 0:01:39]}  Qb6 {[%clk 0:01:45]}
22. Qd2 {[%clk 0:01:32]}  Rad8 {[%clk 0:01:44]} 23. Rd1 {[%clk 0:00:56]}  Qb3 {[%clk 0:01:42]} 24. Ra1 {[%clk 0:00:55]}  Qb6 {[%clk 0:01:37]}
25. Rd1 {[%clk 0:00:56]}  Qb3 {[%clk 0:01:26]} 26. Ra1 {[%clk 0:00:57]}  Rfe8 {[%clk 0:01:26]} 27. c4 {[%clk 0:00:36]}  Qb6 {[%clk 0:00:47]}
28. cxd5 {[%clk 0:00:37]}  Rxd5 {[%clk 0:00:40]} 29. Qc3 {[%clk 0:00:38]}  Qd4 {[%clk 0:00:11]} 30. Qxd4 {[%clk 0:00:22]}  Rxd4 {[%clk 0:00:12]}
31. Rb3 {[%clk 0:00:19]}  Re7 {[%clk 0:00:13]} 32. f4 {[%clk 0:00:17]}  h6 {[%clk 0:00:11]} 33. Kf2 {[%clk 0:00:16]}  g5 {[%clk 0:00:12]}
34. hxg5 {[%clk 0:00:17]}  hxg5 {[%clk 0:00:14]} 35. Ke3 {[%clk 0:00:17]}  Re4+ {[%clk 0:00:07]} 36. Kf3 {[%clk 0:00:19]}  Rd4 {[%clk 0:00:08]}
37. Rc3 {[%clk 0:00:14]}  gxf4 {[%clk 0:00:06]} 38. gxf4 {[%clk 0:00:15]}  Red7 {[%clk 0:00:03]} 39. Bc4 {[%clk 0:00:16]}  Rd2 {[%clk 0:00:03]}
40. b3 {[%clk 0:00:14]}  Kf8 {[%clk 0:00:04]} 41. Rg1 {[%clk 0:00:15]}  Rh2 {[%clk 0:00:04]} 42. Rg5 {[%clk 0:00:14]}  Rh3+ {[%clk 0:00:05]}
43. Rg3 {[%clk 0:00:16]}  Rh4 {[%clk 0:00:06]} 44. Rg5 {[%clk 0:00:16]}  Rh3+ {[%clk 0:00:07]} 45. Rg3 {[%clk 0:00:17]}  Rxg3+ {[%clk 0:00:08]}
46. Kxg3 {[%clk 0:00:19]}  Rd4 {[%clk 0:00:08]} 47. Be2 {[%clk 0:00:17]}  Be6 {[%clk 0:00:06]} 48. Bg4 {[%clk 0:00:18]}  Rb4 {[%clk 0:00:05]}
49. Bxe6 {[%clk 0:00:19]}  fxe6 {[%clk 0:00:06]} 50. Kg4 {[%clk 0:00:20]}  Rd4 {[%clk 0:00:06]} 51. Kg5 {[%clk 0:00:21]}  Kg7 {[%clk 0:00:07]}
52. Rg3 {[%clk 0:00:19]}  Re4 {[%clk 0:00:05]} 53. f5 {[%clk 0:00:18]}  Kf7 {[%clk 0:00:03]} 54. Rh3 {[%clk 0:00:14]}  Rxe5 {[%clk 0:00:04]}
55. Rh7+ {[%clk 0:00:15]}  Ke8 {[%clk 0:00:04]} 56. Kf6 {[%clk 0:00:16]}  Rxf5+ {[%clk 0:00:04]} 57. Kxe6 {[%clk 0:00:17]}  Rf3 {[%clk 0:00:04]}
58. Rxb7 {[%clk 0:00:13]}  Re3+ {[%clk 0:00:03]} 59. Kd6 {[%clk 0:00:14]}  Rc3 {[%clk 0:00:04]} 60. Rb8+ {[%clk 0:00:10]}  Kf7 {[%clk 0:00:05]}
61. Rb6 {[%clk 0:00:07]}  Kf6 {[%clk 0:00:04]} 62. Rxc6 {[%clk 0:00:06]}  Rxb3 {[%clk 0:00:05]} 63. Rc5 {[%clk 0:00:06]}  Rd3+ {[%clk 0:00:04]}
64. Kc7 {[%clk 0:00:06]}  Ke7 {[%clk 0:00:04]} 65. Re5 {[%clk 0:00:07]}  Kf6 {[%clk 0:00:04]} 66. Rxa5 {[%clk 0:00:08]}  Rc3+ {[%clk 0:00:03]}
67. Kd6 {[%clk 0:00:06]}  Rd3+ {[%clk 0:00:03]} 68. Rd5 {[%clk 0:00:07]}  Ra3 {[%clk 0:00:03]} 69. a5 {[%clk 0:00:08]}  Ra1 {[%clk 0:00:04]}
70. Kd7 {[%clk 0:00:09]}  Ra2 {[%clk 0:00:04]} 71. Rd6+ {[%clk 0:00:10]}  Ke5 {[%clk 0:00:04]} 72. a6 {[%clk 0:00:12]}  Rc2 {[%clk 0:00:04]}
73. Rc6 {[%clk 0:00:12]}  Rh2 {[%clk 0:00:04]} 74. Kc7 {[%clk 0:00:13]}  Ra2 {[%clk 0:00:03]} 75. Kb7 {[%clk 0:00:14]}  Kd5 {[%clk 0:00:03]}
76. Rb6 {[%clk 0:00:15]} 1-0

[Event "2026 Biel Blitz Open"]
[Site "Biel, CH"]
[Date "2026.07.19"]
[Round "5"]
[White "Mohammad Nubairshah Shaikh"]
[Black "Gloeckler, Christian"]
[Result "1/2-1/2"]
[Board "3"]
[TimeControl "180+2"]
[WhiteFideId "5053196"]
[BlackFideId "34608966"]
[WhiteElo "2316"]
[BlackElo "2513"]
[WhiteTitle "IM"]
[BlackTitle "IM"]
[WhiteClock "0:00:15"]
[BlackClock "0:00:47"]
[Variant "Standard"]
[EndDate "2026.07.19"]
[EndTime "13:11:46"]

1. Nf3 {[%clk 0:03:03]}  Nf6 {[%clk 0:03:03]} 2. g3 {[%clk 0:03:04]}  d5 {[%clk 0:03:05]} 3. Bg2 {[%clk 0:03:05]}  e6 {[%clk 0:03:06]}
4. O-O {[%clk 0:03:04]}  Be7 {[%clk 0:03:07]} 5. c4 {[%clk 0:03:05]}  O-O {[%clk 0:03:07]} 6. d4 {[%clk 0:03:06]}  Nbd7 {[%clk 0:03:08]}
7. cxd5 {[%clk 0:02:39]}  exd5 {[%clk 0:03:07]} 8. Bf4 {[%clk 0:02:39]}  c6 {[%clk 0:03:07]} 9. Nc3 {[%clk 0:02:39]}  Re8 {[%clk 0:03:06]}
10. Qc2 {[%clk 0:02:33]}  Nf8 {[%clk 0:03:04]} 11. Ne5 {[%clk 0:02:33]}  Ne6 {[%clk 0:03:00]} 12. Be3 {[%clk 0:02:31]}  Bd6 {[%clk 0:03:00]}
13. f4 {[%clk 0:02:12]}  Bxe5 {[%clk 0:03:00]} 14. fxe5 {[%clk 0:02:10]}  Ng4 {[%clk 0:03:01]} 15. Qd2 {[%clk 0:01:55]}  Nxe5 {[%clk 0:02:56]}
16. dxe5 {[%clk 0:01:44]}  d4 {[%clk 0:02:58]} 17. Bf2 {[%clk 0:01:34]}  dxc3 {[%clk 0:02:56]} 18. Qxc3 {[%clk 0:01:35]}  Qe7 {[%clk 0:02:37]}
19. Rad1 {[%clk 0:01:36]}  Bd7 {[%clk 0:02:29]} 20. Rd6 {[%clk 0:01:37]}  Nf8 {[%clk 0:02:25]} 21. Rfd1 {[%clk 0:00:40]}  Be6 {[%clk 0:02:26]}
22. a3 {[%clk 0:00:33]}  Ng6 {[%clk 0:02:22]} 23. Be3 {[%clk 0:00:13]}  Bg4 {[%clk 0:02:15]} 24. h3 {[%clk 0:00:15]}  Bxe2 {[%clk 0:02:08]}
25. R1d2 {[%clk 0:00:16]}  Ba6 {[%clk 0:01:57]} 26. Rd7 {[%clk 0:00:13]}  Qe6 {[%clk 0:01:41]} 27. R2d6 {[%clk 0:00:09]}  Qxe5 {[%clk 0:01:42]}
28. Bd4 {[%clk 0:00:11]}  Qe1+ {[%clk 0:01:42]} 29. Kh2 {[%clk 0:00:08]}  Qxc3 {[%clk 0:01:43]} 30. Bxc3 {[%clk 0:00:09]}  Nf8 {[%clk 0:01:43]}
31. Rc7 {[%clk 0:00:07]}  Rac8 {[%clk 0:01:40]} 32. Rxc8 {[%clk 0:00:05]}  Rxc8 {[%clk 0:01:41]} 33. Bd4 {[%clk 0:00:05]}  c5 {[%clk 0:01:15]}
34. Bf2 {[%clk 0:00:07]}  Ne6 {[%clk 0:01:07]} 35. Rd7 {[%clk 0:00:05]}  Rd8 {[%clk 0:00:37]} 36. Rxd8+ {[%clk 0:00:06]}  Nxd8 {[%clk 0:00:39]}
37. Bxc5 {[%clk 0:00:07]}  b6 {[%clk 0:00:40]} 38. Be3 {[%clk 0:00:08]}  Bb7 {[%clk 0:00:40]} 39. Bf1 {[%clk 0:00:09]}  Bd5 {[%clk 0:00:37]}
40. g4 {[%clk 0:00:10]}  Kf8 {[%clk 0:00:37]} 41. Kg3 {[%clk 0:00:12]}  Ke7 {[%clk 0:00:37]} 42. Bd4 {[%clk 0:00:13]}  Ne6 {[%clk 0:00:37]}
43. Be5 {[%clk 0:00:14]}  Kd7 {[%clk 0:00:22]} 44. Bd3 {[%clk 0:00:15]}  f6 {[%clk 0:00:22]} 45. Bb8 {[%clk 0:00:16]}  Kc8 {[%clk 0:00:17]}
46. Bd6 {[%clk 0:00:14]}  h6 {[%clk 0:00:11]} 47. Bf5 {[%clk 0:00:16]}  Kd7 {[%clk 0:00:07]} 48. Bf8 {[%clk 0:00:16]}  Ke8 {[%clk 0:00:06]}
49. Bxe6 {[%clk 0:00:17]}  Bxe6 {[%clk 0:00:07]} 50. Bxg7 {[%clk 0:00:18]}  f5 {[%clk 0:00:06]} 51. Kf4 {[%clk 0:00:17]}  fxg4 {[%clk 0:00:06]}
52. hxg4 {[%clk 0:00:18]}  Kf7 {[%clk 0:00:07]} 53. Bxh6 {[%clk 0:00:19]}  Kg6 {[%clk 0:00:08]} 54. Bg5 {[%clk 0:00:20]}  Bd7 {[%clk 0:00:08]}
55. Bd8 {[%clk 0:00:21]}  Bc8 {[%clk 0:00:09]} 56. Bc7 {[%clk 0:00:19]}  Bd7 {[%clk 0:00:07]} 57. b4 {[%clk 0:00:15]}  Bc8 {[%clk 0:00:05]}
58. Bb8 {[%clk 0:00:09]}  a6 {[%clk 0:00:07]} 59. Bc7 {[%clk 0:00:08]}  b5 {[%clk 0:00:08]} 60. Bd8 {[%clk 0:00:09]}  Bd7 {[%clk 0:00:08]}
61. g5 {[%clk 0:00:08]}  Be6 {[%clk 0:00:10]} 62. Ke5 {[%clk 0:00:09]}  Bb3 {[%clk 0:00:11]} 63. Kd6 {[%clk 0:00:10]}  Ba4 {[%clk 0:00:12]}
64. Kc6 {[%clk 0:00:11]}  Kf7 {[%clk 0:00:13]} 65. Kb6 {[%clk 0:00:13]}  Kg6 {[%clk 0:00:14]} 66. Kxa6 {[%clk 0:00:14]}  Kf7 {[%clk 0:00:15]}
67. Kb6 {[%clk 0:00:14]}  Kg6 {[%clk 0:00:16]} 68. Kc5 {[%clk 0:00:15]}  Kf7 {[%clk 0:00:17]} 69. Kd6 {[%clk 0:00:16]}  Kg6 {[%clk 0:00:18]}
70. Ke6 {[%clk 0:00:16]}  Bb3+ {[%clk 0:00:19]} 71. Ke5 {[%clk 0:00:18]}  Ba4 {[%clk 0:00:20]} 72. Bf6 {[%clk 0:00:18]}  Bb3 {[%clk 0:00:21]}
73. Kd4 {[%clk 0:00:17]}  Ba4 {[%clk 0:00:22]} 74. Kc5 {[%clk 0:00:16]}  Kf7 {[%clk 0:00:24]} 75. Bd4 {[%clk 0:00:16]}  Kg6 {[%clk 0:00:25]}
76. Be3 {[%clk 0:00:17]}  Kf7 {[%clk 0:00:26]} 77. Kd5 {[%clk 0:00:14]}  Kg6 {[%clk 0:00:27]} 78. Ke6 {[%clk 0:00:14]}  Bb3+ {[%clk 0:00:28]}
79. Ke7 {[%clk 0:00:14]}  Ba4 {[%clk 0:00:30]} 80. Bc1 {[%clk 0:00:15]}  Bb3 {[%clk 0:00:31]} 81. Kd6 {[%clk 0:00:08]}  Ba4 {[%clk 0:00:32]}
82. Kc5 {[%clk 0:00:08]}  Kf7 {[%clk 0:00:33]} 83. Bd2 {[%clk 0:00:10]}  Kg6 {[%clk 0:00:34]} 84. Be3 {[%clk 0:00:11]}  Kf7 {[%clk 0:00:36]}
85. Kb6 {[%clk 0:00:09]}  Kg6 {[%clk 0:00:37]} 86. Ka5 {[%clk 0:00:10]}  Kf7 {[%clk 0:00:38]} 87. Bd2 {[%clk 0:00:07]}  Kg6 {[%clk 0:00:39]}
88. Kb6 {[%clk 0:00:08]}  Kf5 {[%clk 0:00:40]} 89. Kc5 {[%clk 0:00:10]}  Kg6 {[%clk 0:00:41]} 90. Kd6 {[%clk 0:00:11]}  Bb3 {[%clk 0:00:42]}
91. Ke5 {[%clk 0:00:12]}  Ba4 {[%clk 0:00:43]} 92. Be3 {[%clk 0:00:13]}  Bb3 {[%clk 0:00:44]} 93. Bd2 {[%clk 0:00:14]}  Ba4 {[%clk 0:00:46]}
94. Be3 {[%clk 0:00:15]}  Bb3 {[%clk 0:00:47]} 1/2-1/2

[Event "2026 Biel Blitz Open"]
[Site "Biel, CH"]
[Date "2026.07.19"]
[Round "5"]
[White "Aronyak Ghosh"]
[Black "Shukhman, Anna"]
[Result "1-0"]
[Board "4"]
[TimeControl "180+2"]
[WhiteFideId "25072846"]
[BlackFideId "54180058"]
[WhiteElo "2488"]
[BlackElo "2392"]
[WhiteTitle "IM"]
[BlackTitle "WGM"]
[WhiteClock "0:02:09"]
[BlackClock "0:01:11"]
[Variant "Standard"]
[EndDate "2026.07.19"]
[EndTime "13:04:03"]

1. d4 {[%clk 0:03:02]}  d5 {[%clk 0:03:04]} 2. Nf3 {[%clk 0:02:52]}  Nf6 {[%clk 0:03:05]} 3. a3 {[%clk 0:02:53]}  e6 {[%clk 0:02:59]}
4. Bf4 {[%clk 0:02:53]}  Bd6 {[%clk 0:02:59]} 5. e3 {[%clk 0:02:53]}  O-O {[%clk 0:02:48]} 6. Bg3 {[%clk 0:02:51]}  c5 {[%clk 0:02:43]}
7. dxc5 {[%clk 0:02:50]}  Bxc5 {[%clk 0:02:42]} 8. c4 {[%clk 0:02:51]}  Nc6 {[%clk 0:02:35]} 9. Qc2 {[%clk 0:02:50]}  Bd6 {[%clk 0:02:25]}
10. Nc3 {[%clk 0:02:46]}  a6 {[%clk 0:02:04]} 11. Rd1 {[%clk 0:02:42]}  Bb8 {[%clk 0:01:47]} 12. Bh4 {[%clk 0:02:36]}  Ne5 {[%clk 0:01:40]}
13. cxd5 {[%clk 0:02:29]}  Nxf3+ {[%clk 0:01:33]} 14. gxf3 {[%clk 0:02:30]}  exd5 {[%clk 0:01:34]} 15. Nxd5 {[%clk 0:02:22]}  Nxd5 {[%clk 0:01:09]}
16. Bxd8 {[%clk 0:02:16]}  Rxd8 {[%clk 0:01:11]} 17. Rxd5 {[%clk 0:02:09]} 1-0